bitfinex/quotes_ETHUSD_20250425
["timestamp","ask_amount","ask_price","bid_price","bid_amount"]
[1745601738476,0.1243,1808.8,1808.2,6.3574232]
[1745601738679,0.1243,1808.8,1808.3,5.52986063]
[1745601738875,0.1243,1808.8,1808.4,5.52972748]
[1745601739787,0.1243,1808.8,1808.5,5.52935117]
[1745601740677,0.1243,1808.8,1808.4,5.52961907]
[1745601740872,0.1243,1808.8,1808.5,5.52934713]
[1745601741077,0.1243,1808.8,1808.5,5.52921563]
[1745601741592,0.1243,1808.8,1808.5,11.05843831]
[1745601741793,0.1243,1808.8,1808.7,5.52883286]
[1745601741976,3.43388825,1809.0,1808.6,5.52913856]
[1745601742178,0.43388825,1809.0,1808.9,5.52822157]
[1745601742356,0.43388825,1809.0,1808.8,5.52829618]
[1745601742552,0.1243,1809.2,1808.8,0.61054964]
[1745601742754,0.1243,1809.2,1809.1,5.52761041]
[1745601742959,0.30958825,1809.3,1809.2,5.52730488]
[1745601743288,0.30958825,1809.3,1809.1,11.05483211]
[1745601743498,0.30958825,1809.3,1809.1,11.05478626]
[1745601743679,5.92051768,1809.4,1809.2,5.52730464]
[1745601744550,5.92051768,1809.4,1809.2,11.05441257]
[1745601744892,5.92051768,1809.4,1809.2,5.52707771]
[1745601745566,0.14658731,1809.3,1809.2,5.52707771]
[1745601745955,5.92051768,1809.4,1809.3,5.52699939]
[1745601746390,6.22995809,1809.4,1809.3,5.52699939]
[1745601746692,5.33274041,1809.4,1809.3,5.52699939]
[1745601746890,0.30944041,1809.4,1809.3,6.10419956]
[1745601747155,1e-08,1809.6,1809.5,5.5263885]
[1745601747305,1e-08,1809.6,1809.5,7.48924176]
[1745601747595,1e-08,1809.6,1809.5,8.79082287]
[1745601747799,1e-08,1809.6,1809.5,17.09665241]
[1745601748000,1e-08,1809.9,1809.8,5.52547242]
[1745601748170,0.413205,1810.7,1810.5,5.52333609]
[1745601748370,0.413205,1810.7,1810.5,6.28553609]
[1745601748574,0.413205,1810.7,1810.5,7.52416267]
[1745601749397,4.904,1810.6,1809.8,0.811]
[1745601749561,3.0,1810.5,1810.0,5.52467749]
[1745601750075,3.0,1810.5,1810.1,5.52455453]
[1745601750468,3.0,1810.5,1809.8,6.33632209]
[1745601750695,3.0,1810.5,1809.9,5.52503055]
[1745601750897,0.3,1810.4,1810.0,5.52479183]
[1745601751486,0.3,1810.4,1809.9,5.5250565]
[1745601751808,0.1243,1810.3,1809.8,6.33635926]
[1745601751959,0.1243,1810.3,1810.0,5.52469812]
[1745601752702,0.1243,1810.3,1809.6,11.05170956]
[1745601753003,0.1243,1810.3,1809.7,5.5256406]
[1745601753296,0.1243,1810.3,1809.8,5.52525612]
[1745601753601,0.1243,1810.3,1809.8,11.05052445]
[1745601753803,0.1243,1810.3,1809.5,3.67347467]
[1745601753979,0.1243,1810.3,1809.5,10.06182032]
[1745601754303,0.1243,1810.3,1809.8,5.52527514]
[1745601754504,0.1243,1810.3,1809.7,5.52561826]
[1745601754668,0.1243,1810.3,1809.7,11.05116139]
[1745601754865,0.1243,1810.3,1809.7,11.05112542]
[1745601755079,0.1243,1810.3,1809.8,5.52545364]
[1745601755263,0.1243,1810.3,1809.9,5.5251045]
[1745601755497,0.1243,1810.3,1809.8,5.52527831]
[1745601757403,0.1243,1810.3,1809.7,5.52557367]
[1745601757601,0.1243,1810.3,1809.8,5.52527112]
[1745601758303,0.1243,1810.3,1809.8,5.52534075]
[1745601758877,3.1243,1810.3,1809.6,5.5259204]
[1745601759107,3.1243,1810.1,1809.5,5.52629217]
[1745601759265,3.1243,1810.1,1809.5,5.52620238]
[1745601759471,3.1243,1810.1,1809.6,5.52604326]
[1745601759670,3.1243,1810.1,1809.3,6.29488369]
[1745601759871,3.1243,1810.1,1809.6,5.52589627]
[1745601760084,0.31243,1810.0,1809.6,5.52589627]
[1745601760601,0.14982673,1809.9,1809.6,5.52589627]
[1745601762933,0.14982673,1809.9,1809.6,11.05177625]
[1745601763220,0.14982673,1809.9,1809.7,5.52563396]
[1745601763988,0.14982673,1809.9,1809.8,5.52547242]
[1745601764399,3.1243,1810.1,1809.8,5.52547242]
[1745601764720,0.14668136,1810.0,1809.8,5.52547242]
[1745601765021,0.14668136,1810.0,1809.7,5.52563396]
[1745601765395,0.14668136,1810.0,1809.6,5.52588357]
[1745601765712,0.14668136,1810.0,1809.6,5.52578715]
[1745601765922,0.14668136,1810.0,1809.6,11.05166075]
[1745601766109,0.5576068,1810.0,1809.6,5.52578715]
[1745601766990,0.5576068,1810.0,1809.6,11.05168165]
[1745601767221,0.5576068,1810.0,1809.7,5.52575406]
[1745601767822,0.5576068,1810.0,1809.6,5.52578715]
[1745601768213,0.5576068,1810.0,1809.6,11.05164525]
[1745601768422,0.5576068,1810.0,1809.6,5.52578715]
[1745601768925,0.5576068,1810.0,1809.5,5.52618937]
[1745601769632,0.5576068,1810.0,1809.6,5.52596878]
[1745601769995,0.5576068,1810.0,1809.5,5.52618937]
[1745601769996,0.5576068,1810.0,1809.5,5.52627663]
[1745601770201,0.5576068,1810.0,1809.5,11.0525519]
[1745601770409,0.5576068,1810.0,1809.5,5.52620748]
[1745601770611,0.1243,1809.9,1809.5,5.52620748]
[1745601770812,0.1243,1809.9,1809.3,6.29482936]
[1745601771010,0.1243,1809.9,1809.1,10.47359345]
[1745601771011,0.1243,1809.7,1809.1,6.32682062]
[1745601771301,0.14586262,1809.6,1809.1,5.52732062]
[1745601771702,0.1243,1809.5,1809.1,5.52732062]
[1745601771936,0.14584204,1809.4,1809.1,5.52732062]
[1745601772235,0.14584204,1809.4,1809.0,5.52770282]
[1745601772440,0.14584204,1809.4,1808.9,1.37677866]
[1745601772441,0.14584204,1809.4,1809.2,5.52729663]
[1745601773453,0.14584204,1809.4,1809.2,5.52711909]
[1745601773642,0.14584204,1809.4,1809.2,5.52711765]
[1745601773942,0.1243,1809.5,1809.2,5.52711765]
[1745601774238,0.1243,1809.5,1809.2,5.52709628]
[1745601774434,0.14583646,1809.4,1809.2,5.52709628]
[1745601774641,0.1243,1809.5,1809.2,5.52709628]
[1745601775041,0.14583646,1809.4,1809.2,5.52709628]
[1745601775540,0.14583646,1809.4,1809.1,5.52744576]
[1745601775746,0.14583646,1809.4,1809.1,5.52738977]
[1745601775930,0.14583646,1809.4,1809.2,5.5272379]
[1745601777271,0.14583646,1809.4,1809.1,5.52747873]
[1745601777474,0.1243,1809.5,1808.9,0.7995]
[1745601777774,0.1243,1809.5,1808.3,0.55]
[1745601777775,3.0,1809.2,1808.5,0.7682]
[1745601777955,3.0,1809.2,1808.4,5.52960097]
[1745601777956,0.4243,1809.1,1808.4,5.52960097]
[1745601778163,0.1243,1808.8,1808.3,5.52984853]
[1745601778673,0.13999046,1808.7,1808.3,5.52984853]
[1745601778984,0.13999046,1808.7,1808.2,5.53015347]
[1745601779286,0.13999046,1808.7,1808.1,0.6]
[1745601779449,3.0,1808.5,1808.1,0.6]
[1745601779773,0.43490954,1808.4,1808.1,0.6]
[1745601783277,0.13490954,1808.4,1808.1,6.13057136]
[1745601783641,0.13490954,1808.4,1808.2,5.53018473]
[1745601783838,0.13490954,1808.4,1808.3,5.53005585]
[1745601784042,5.0703,1808.6,1808.4,5.52953209]
[1745601784360,5.0703,1808.6,1808.4,11.05909832]
[1745601784679,5.0703,1808.6,1808.3,5.52994499]
[1745601784878,0.12386474,1808.5,1808.3,5.52990276]
[1745601785179,0.12386474,1808.5,1808.3,5.5300454]
[1745601786283,0.12386474,1808.5,1808.4,5.52975005]
[1745601787295,0.12386474,1808.5,1808.2,0.7858]
[1745601787455,0.12386474,1808.5,1808.4,5.52975005]
[1745601792585,0.12386474,1808.5,1808.4,6.63571753]
[1745601792944,0.1243,1808.8,1808.3,5.5298776]
[1745601793144,0.1243,1808.8,1808.2,5.53016468]
[1745601793346,0.1243,1808.6,1808.1,0.6]
[1745601793657,0.1243,1808.6,1808.1,6.13057563]
[1745601793658,0.11907099,1808.5,1808.1,6.13057563]
[1745601794066,0.11907099,1808.5,1808.1,0.6]
[1745601794067,0.1243,1808.4,1808.1,0.6]
[1745601794279,0.11839726,1808.3,1808.1,0.6]
[1745601794483,5.01739726,1808.3,1808.1,0.6]
[1745601794788,5.53156699,1808.3,1808.1,0.6]
[1745601798104,5.53156699,1808.3,1808.1,6.13054444]
[1745601798270,5.01739726,1808.3,1808.1,6.13054444]
[1745601798470,5.01739726,1808.3,1808.1,6.13062061]
[1745601798973,5.01739726,1808.3,1808.1,0.6]
[1745601801495,0.1243,1808.2,1808.1,0.6]
[1745601802006,0.23173486,1808.2,1808.1,0.6]
[1745601802900,0.74480835,1808.2,1808.1,0.6]
[1745601805428,0.23173486,1808.2,1808.1,0.6]
[1745601805733,0.10743486,1808.2,1808.1,6.13066755]
[1745601806019,0.10743486,1808.2,1808.1,6.90656755]
[1745601806231,4.899,1808.3,1808.2,5.53036168]
[1745601806585,5.00475466,1808.3,1808.2,5.53036168]
[1745601807126,0.10575466,1808.3,1808.2,5.53036168]
[1745601807358,0.1243,1808.5,1808.2,5.53036168]
[1745601807526,0.10580918,1808.3,1808.2,5.53036168]
[1745601807702,0.1243,1808.5,1808.2,5.53036168]
[1745601807904,0.10581902,1808.4,1808.2,5.53036168]
[1745601808292,0.10581902,1808.4,1808.2,5.53021232]
[1745601808893,0.10581902,1808.4,1808.1,12.43691477]
[1745601809199,0.10581902,1808.4,1808.1,6.90636201]
[1745601809625,0.10581902,1808.4,1808.1,12.4368242]
[1745601809831,0.10581902,1808.4,1808.2,5.53035463]
[1745601809998,0.10581902,1808.4,1808.1,6.90636201]
[1745601810198,0.10581902,1808.4,1808.1,0.6]
[1745601810724,0.1243,1808.3,1808.1,0.6]
[1745601810926,0.10754204,1808.2,1808.1,0.6]
[1745601811135,8.13084204,1808.2,1808.1,0.6]
[1745601813031,8.54724605,1808.2,1808.1,0.6]
[1745601816432,8.13084204,1808.2,1808.1,0.6]
[1745601816709,8.94392624,1808.2,1808.1,0.6]
[1745601819056,8.81962624,1808.2,1808.1,0.6]
[1745601819648,0.10754204,1808.2,1808.1,0.6]
[1745601820012,5.0243,1808.4,1808.1,6.13066243]
[1745601820218,0.10448278,1808.2,1808.1,7.51425255]
[1745601820419,4.9,1808.4,1808.2,5.53034177]
[1745601820636,4.9,1808.4,1808.1,13.04443464]
[1745601820847,0.10449313,1808.3,1808.2,5.53036168]
[1745601821034,0.10449313,1808.3,1808.1,1.4053]
[1745601821229,0.10449313,1808.3,1808.1,6.93594534]
[1745601821452,0.10449313,1808.3,1808.2,5.53036168]
[1745601822057,4.9,1809.0,1808.7,6.33398975]
[1745601822267,3.0,1809.0,1808.7,6.33398975]
[1745601822552,4.9,1809.1,1808.7,6.3339424]
[1745601822858,4.9,1809.1,1808.8,5.52838672]
[1745601824463,4.9,1809.1,1808.8,5.52835693]
[1745601824757,4.9,1809.4,1809.1,5.5274448]
[1745601824928,4.9,1809.4,1809.1,5.52741226]
[1745601825453,4.9,1809.4,1809.2,5.52716122]
[1745601825823,4.9,1809.4,1809.1,5.52745374]
[1745601826566,4.9,1809.4,1809.2,5.52723476]
[1745601826924,4.9,1809.4,1809.1,5.52740818]
[1745601827125,4.9,1809.4,1809.1,6.71553434]
[1745601827454,4.9,1809.4,1809.0,6.35385337]
[1745601827455,5.0243,1809.4,1809.0,0.8261]
[1745601827773,5.0243,1809.4,1808.9,5.52815934]
[1745601828125,5.0243,1809.4,1808.8,6.2846241]
[1745601828437,3.0,1809.3,1808.8,6.2846241]
[1745601828827,3.0,1809.3,1808.8,0.7563]
[1745601829029,0.3,1809.2,1808.8,0.7563]
[1745601830265,0.3,1809.2,1808.6,0.7564]
[1745601830434,0.1243,1809.1,1808.7,5.52866008]
[1745601830775,0.3,1809.2,1808.7,5.52866008]
[1745601831125,0.3,1809.2,1808.7,11.05724345]
[1745601831447,0.3,1809.2,1808.7,5.52861863]
[1745601833164,0.3,1809.2,1808.7,11.05723024]
[1745601833460,0.3,1809.2,1808.7,5.52861161]
[1745601833875,0.3,1809.2,1808.7,11.05726532]
[1745601834031,0.3,1809.2,1808.7,11.05722809]
[1745601834231,0.3,1809.2,1808.8,5.52837625]
[1745601835675,0.3,1809.2,1808.7,5.52861161]
[1745601836374,0.3,1809.2,1808.8,5.52843383]
[1745601836574,0.3,1809.2,1808.7,11.05725627]
[1745601836761,0.3,1809.2,1808.7,5.52861161]
[1745601837079,0.3,1809.2,1808.8,5.5284945]
[1745601837506,0.3,1809.2,1808.7,5.52861161]
[1745601837713,0.3,1809.2,1808.8,5.52833974]
[1745601838277,0.3,1809.2,1808.7,5.52861161]
[1745601838473,0.3,1809.2,1808.8,5.52842792]
[1745601838692,0.3,1809.2,1808.7,5.52883286]
[1745601839716,0.3,1809.2,1808.8,5.52851749]
[1745601839925,0.3,1809.2,1808.6,0.7564]
[1745601840090,0.3,1809.2,1808.8,5.52829132]
[1745601841015,3.1243,1809.3,1808.8,5.52829132]
[1745601841016,3.1243,1809.3,1808.9,5.52818122]
[1745601841433,3.1243,1809.3,1808.9,5.52804654]
[1745601843937,3.1243,1809.3,1808.7,5.52863719]
[1745601844239,3.1243,1809.3,1808.8,5.52841889]
[1745601844640,3.1243,1809.3,1808.8,11.0566716]
[1745601844833,3.1243,1809.3,1808.9,5.52819786]
[1745601844834,3.92673,1809.3,1808.9,5.52819786]
[1745601845469,0.7019615,1809.2,1808.6,0.7564]
[1745601845649,0.7019615,1809.2,1808.6,6.28542778]
[1745601845808,0.7019615,1809.2,1808.7,5.52881578]
[1745601846168,1.15240065,1809.2,1808.6,6.28533584]
[1745601846307,1.15240065,1809.2,1808.6,11.81427809]
[1745601846732,1.15240065,1809.2,1808.6,11.81428433]
[1745601846935,1.15240065,1809.2,1808.6,6.28533584]
[1745601847138,1.15240065,1809.2,1808.6,11.81432662]
[1745601847745,0.1243,1809.1,1808.4,0.8105]
[1745601848044,4.897,1809.0,1808.5,5.52943948]
[1745601848644,4.897,1809.0,1808.4,6.34008209]
[1745601849144,0.1243,1808.9,1808.5,5.52934404]
[1745601849344,3.1243,1808.9,1808.3,5.52987168]
[1745601849503,3.98419615,1808.9,1808.3,1.18127521]
[1745601849708,3.98419615,1808.9,1808.1,6.13057167]
[1745601849709,0.1243,1808.7,1808.1,6.13057167]
[1745601850050,4.897,1808.6,1808.2,5.53035014]
[1745601850252,4.897,1808.6,1808.1,6.13045271]
[1745601850948,4.897,1808.6,1808.1,0.6]
[1745601851274,0.1243,1808.5,1808.1,6.1304671]
[1745601851415,0.1243,1808.5,1808.2,5.53025289]
[1745601851615,0.1243,1808.5,1808.1,6.1304671]
[1745601851816,0.1243,1808.5,1808.1,6.13045205]
[1745601852011,0.1243,1808.5,1808.1,6.13044051]
[1745601852213,0.1243,1808.5,1808.1,6.13043879]
[1745601853056,0.1243,1808.5,1808.1,0.6]
[1745601853355,4.897,1808.6,1808.3,5.52992682]
[1745601853848,4.897,1808.6,1808.4,5.52964402]
[1745601854058,4.897,1808.6,1808.5,5.52944429]
[1745601854650,0.1243,1808.9,1808.4,5.52975005]
[1745601854950,21.6063,1809.1,1808.7,5.52864726]
[1745601855249,23.12721701,1809.1,1808.7,5.52864726]
[1745601855412,21.6063,1809.1,1808.7,5.52864726]
[1745601855808,21.6063,1809.1,1808.6,5.52895904]
[1745601856427,21.6063,1809.1,1808.6,5.52895228]
[1745601857071,21.6063,1809.1,1808.7,5.52873368]
[1745601858665,21.6063,1809.1,1808.6,5.52895228]
[1745601858857,24.12469615,1809.1,1808.6,5.52895228]
[1745601859034,24.12469615,1809.1,1808.6,5.5291161]
[1745601859384,3.0,1809.0,1808.3,0.8111]
[1745601859677,0.1243,1808.9,1808.4,5.52974974]
[1745601859991,0.1243,1808.9,1808.4,11.05916658]
[1745601860336,0.1243,1808.9,1808.3,6.34098731]
[1745601860337,0.49449615,1808.9,1808.3,6.34098731]
[1745601860538,0.49449615,1808.9,1808.3,6.3409664]
[1745601860748,0.49449615,1808.9,1808.4,5.529622]
[1745601861335,0.49449615,1808.9,1808.4,5.52957146]
[1745601861540,0.49449615,1808.9,1808.4,11.05911867]
[1745601861754,0.49449615,1808.9,1808.4,5.52954721]
[1745601863759,0.49449615,1808.9,1808.5,5.52933032]
[1745601864271,0.1243,1808.9,1808.5,1.10590804]
[1745601864493,0.1243,1808.9,1808.6,5.52889659]
[1745601865065,0.1243,1808.9,1808.7,5.52881225]
[1745601865278,0.1243,1808.9,1808.6,5.52889659]
[1745601865447,0.1243,1808.9,1808.7,5.52881906]
[1745601866571,0.1243,1808.9,1808.6,5.52901735]
[1745601867145,0.1243,1808.9,1808.6,11.05793706]
[1745601867348,0.1243,1808.9,1808.7,5.52856412]
[1745601867978,21.6063,1809.1,1808.8,5.5285272]
[1745601868185,21.6063,1809.1,1808.7,5.52856412]
[1745601868382,21.6063,1809.1,1808.8,5.52852071]
[1745601868558,21.6063,1809.1,1808.7,5.52858725]
[1745601868764,21.6063,1809.1,1808.8,5.52849739]
[1745601869191,5.0213,1809.1,1808.7,5.52858725]
[1745601869563,5.0213,1809.1,1808.8,5.52849597]
[1745601869900,5.0213,1809.1,1808.8,5.52849203]
[1745601870381,5.0213,1809.1,1808.7,5.52855253]
[1745601870791,5.0213,1809.1,1808.7,5.5287156]
[1745601871004,5.0213,1809.1,1808.6,6.32851822]
[1745601871169,0.50213,1809.0,1808.6,5.52901822]
[1745601871581,0.50213,1809.0,1808.6,11.05796118]
[1745601871781,0.50213,1809.0,1808.7,5.52883033]
[1745601871959,0.50213,1809.0,1808.6,11.05795633]
[1745601872297,5.0213,1809.1,1808.6,11.05786728]
[1745601872460,5.0213,1809.1,1808.5,5.52927746]
[1745601872792,5.0213,1809.1,1808.6,11.05808177]
[1745601873580,5.0213,1809.1,1808.7,5.52881633]
[1745601874050,5.0213,1809.1,1808.6,5.528987]
[1745601874253,5.88119615,1809.1,1808.6,11.05790244]
[1745601874552,5.88119615,1809.1,1808.6,5.52891544]
[1745601875092,5.88119615,1809.1,1808.6,11.0578396]
[1745601875294,5.88119615,1809.1,1808.7,5.52882034]
[1745601875499,5.88119615,1809.1,1808.8,5.52839734]
[1745601875655,0.1243,1809.4,1809.1,5.52745866]
[1745601875854,0.1243,1809.4,1809.1,5.52741475]
[1745601876088,0.1243,1809.4,1809.1,11.05485609]
[1745601876287,0.1243,1809.4,1809.1,5.52741475]
[1745601876691,16.7103,1809.6,1809.1,1.18659545]
[1745601876988,4.895,1809.6,1809.4,5.52650804]
[1745601877159,4.895,1809.6,1809.5,5.5263885]
[1745601877959,0.1243,1809.8,1809.5,5.5263885]
[1745601879099,0.1243,1809.8,1809.5,5.52637932]
[1745601880095,0.1243,1809.8,1809.4,6.34589839]
[1745601880294,0.1243,1809.8,1809.4,11.87238788]
[1745601880494,0.1243,1809.8,1809.5,5.52638589]
[1745601881163,0.1243,1809.8,1809.4,6.34594789]
[1745601881489,0.1243,1809.8,1809.4,7.53319723]
[1745601881693,0.1243,1809.8,1809.5,5.52619481]
[1745601881890,4.895,1809.9,1809.6,5.52600558]
[1745601882095,4.895,1809.9,1809.7,5.52577642]
[1745601882459,4.895,1809.9,1809.5,5.52637346]
[1745601883296,4.895,1809.9,1809.5,6.83234468]
[1745601883503,4.895,1809.9,1809.5,5.5263594]
[1745601884683,0.1243,1809.8,1809.2,6.32894309]
[1745601884887,0.1243,1809.8,1808.9,0.5776615]
[1745601884888,0.1243,1809.8,1809.1,5.52740808]
[1745601885099,0.7019615,1809.7,1809.0,6.32958546]
[1745601885407,0.5776615,1809.7,1809.0,11.8573289]
[1745601885560,0.1243,1809.6,1809.0,6.32954344]
[1745601885757,0.1243,1809.6,1809.0,11.85727108]
[1745601885959,0.1243,1809.6,1808.9,5.52804698]
[1745601886201,0.1243,1809.6,1809.0,5.5277516]
[1745601886355,0.1243,1809.6,1809.0,5.52771092]
[1745601886561,0.1243,1809.6,1809.1,5.52742403]
[1745601886975,0.1243,1809.6,1809.0,5.52775062]
[1745601887299,4.894,1809.5,1809.1,5.52760252]
[1745601887504,5.39583,1809.5,1809.1,5.52760252]
[1745601888402,4.894,1809.5,1809.1,5.52760252]
[1745601888790,4.894,1809.5,1809.2,11.05428213]
[1745601888988,4.894,1809.5,1809.2,5.52709469]
[1745601889803,4.894,1809.5,1809.2,5.52708707]
[1745601890107,4.894,1809.5,1809.2,11.05417001]
[1745601890291,4.894,1809.5,1809.2,5.52708294]
[1745601890493,4.894,1809.5,1809.1,6.27929517]
[1745601891001,4.894,1809.5,1809.1,11.80668141]
[1745601891368,4.894,1809.5,1809.1,11.80657612]
[1745601891699,4.894,1809.5,1809.1,11.80660306]
[1745601891878,4.894,1809.5,1809.1,6.27918624]
[1745601892079,4.894,1809.5,1809.2,5.52727525]
[1745601893690,4.894,1809.5,1809.2,5.52719995]
[1745601894109,4.894,1809.5,1809.2,11.05431617]
[1745601894294,4.894,1809.5,1809.2,11.05421457]
[1745601894602,4.894,1809.5,1809.2,5.52708568]
[1745601894803,4.894,1809.5,1809.3,5.52697078]
[1745601894981,4.894,1809.5,1809.2,5.52708568]
[1745601895482,4.894,1809.5,1809.2,5.52730278]
[1745601895686,4.894,1809.5,1809.2,5.52708728]
[1745601895994,4.894,1809.5,1809.2,6.7077186]
[1745601896505,4.894,1809.5,1809.2,1.18063132]
[1745601896706,4.894,1809.5,1809.1,11.80668538]
[1745601896870,4.894,1809.5,1809.1,6.27923891]
[1745601897070,4.894,1809.5,1809.2,5.52728988]
[1745601897393,4.894,1809.5,1809.2,5.5273017]
[1745601897569,4.894,1809.5,1809.2,5.52726857]
[1745601898611,4.894,1809.5,1809.1,5.52752397]
[1745601898912,4.894,1809.5,1809.1,5.52746031]
[1745601899117,4.894,1809.5,1809.2,5.52728626]
[1745601899287,4.894,1809.5,1809.1,5.52743173]
[1745601900299,4.894,1809.5,1809.1,6.6329532]
[1745601900697,4.894,1809.5,1809.1,6.63294921]
[1745601900997,4.894,1809.5,1809.1,5.52742774]
[1745601901204,4.894,1809.5,1809.1,5.5274012]
[1745601901509,4.894,1809.5,1809.1,11.05484213]
[1745601901712,4.894,1809.5,1809.1,11.05480764]
[1745601902009,4.894,1809.5,1809.1,5.5274012]
[1745601902309,4.894,1809.5,1809.2,5.52730301]
[1745601902709,4.894,1809.5,1809.1,11.05481927]
[1745601903318,4.894,1809.5,1809.2,5.52727374]
[1745601904419,4.894,1809.5,1809.1,12.16030759]
[1745601904580,4.88966982,1809.5,1809.1,12.16030759]
[1745601904780,4.88966982,1809.5,1809.2,5.52727076]
[1745601905511,4.88966982,1809.5,1809.2,5.52710173]
[1745601906479,4.88966982,1809.5,1809.1,6.6328984]
[1745601907487,4.88966982,1809.5,1809.1,1.10548193]
[1745601907825,0.1243,1809.3,1808.8,5.52844067]
[1745601907997,0.1243,1809.3,1808.9,5.52819567]
[1745601907998,6.11,1809.2,1808.9,5.52819567]
[1745601908420,6.11,1809.2,1808.7,6.34709831]
[1745601908583,6.11,1809.2,1809.1,5.52761041]
[1745601909397,6.11,1809.2,1809.1,6.63315697]
[1745601909825,6.10567602,1809.2,1809.1,6.63315697]
[1745601911304,6.10567602,1809.3,1809.1,6.63315697]
[1745601911623,6.10567602,1809.3,1809.1,6.63298979]
[1745601911817,6.10567602,1809.3,1809.2,5.52730488]
[1745601912019,6.10567602,1809.3,1809.1,6.63298979]
[1745601912580,6.10567602,1809.3,1808.8,6.30588706]
[1745601912729,0.1243,1809.2,1808.9,5.52808202]
[1745601913801,0.1243,1809.2,1808.8,5.52834106]
[1745601913994,3.1243,1809.2,1808.8,5.52834106]
[1745601915038,3.1243,1809.2,1808.4,6.69186648]
[1745601915039,0.1243,1809.0,1808.4,6.69186648]
[1745601915190,3.1243,1808.8,1808.1,1.4069]
[1745601915392,0.1243,1808.6,1808.1,6.93737778]
[1745601915640,6.10567602,1808.5,1808.1,0.6]
[1745601915924,6.22997602,1808.4,1808.1,0.6]
[1745601916128,6.85297362,1808.4,1808.1,0.6]
[1745601916690,5.0153,1808.3,1808.1,0.6]
[1745601917239,3.0,1808.2,1808.1,0.6]
[1745601917538,9.10567602,1808.2,1808.1,0.6]
[1745601919191,6.10567602,1808.2,1808.1,6.13066755]
[1745601919422,6.10567602,1808.2,1808.1,7.29682935]
[1745601920710,6.10567602,1808.2,1808.1,1.7661618]
[1745601921245,6.10567602,1808.2,1808.1,8.05172935]
[1745601921439,6.10567602,1808.7,1808.5,5.52932668]
[1745601921595,6.10567602,1808.7,1808.5,5.52934192]
[1745601921797,6.10567602,1808.7,1808.6,5.52913856]
[1745601922223,6.10567602,1808.7,1808.5,6.76844549]
[1745601922418,6.10567602,1808.7,1808.5,5.5292975]
[1745601922799,6.10567602,1808.7,1808.4,6.86213065]
[1745601922999,6.10567602,1808.7,1808.5,5.52921253]
[1745601923813,6.10567602,1808.7,1808.4,6.28442766]
[1745601924214,6.10567602,1808.7,1808.5,5.52933164]
[1745601924409,6.10567602,1808.7,1808.6,5.52913856]
[1745601924939,4.892,1808.8,1808.7,5.52883286]
[1745601925121,6.10567602,1808.9,1808.8,5.5285272]
[1745601925513,6.10567602,1809.1,1809.0,5.52791597]
[1745601925824,6.10567602,1809.1,1808.9,11.05605285]
[1745601926023,6.10567602,1809.1,1808.9,6.69138207]
[1745601926231,6.10567602,1809.1,1809.0,5.52791597]
[1745601927004,6.10567602,1809.1,1808.9,6.69138207]
[1745601927216,6.10567602,1809.1,1808.9,6.69154179]
[1745601927404,6.10567602,1809.1,1808.9,12.21961263]
[1745601927600,6.10567602,1809.1,1809.0,1.22196126]
[1745601927912,6.10567602,1809.1,1808.9,5.52807084]
[1745601927913,6.10567602,1809.1,1808.8,11.05671375]
[1745601928110,6.10567602,1809.1,1808.9,5.52819373]
[1745601929118,6.10567602,1809.1,1808.8,5.52852032]
[1745601929314,6.10567602,1809.1,1808.8,11.0568753]
[1745601929513,6.10567602,1809.1,1808.8,5.52835498]
[1745601930324,6.22997602,1809.1,1808.8,5.52835498]
[1745601930935,6.22997602,1809.1,1808.8,5.52834357]
[1745601931102,6.22997602,1809.1,1808.8,5.52830043]
[1745601931303,6.10567602,1809.1,1809.0,5.52791597]
[1745601932287,6.10567602,1809.1,1808.9,5.52820835]
[1745601932449,6.10567602,1809.1,1808.9,5.52800576]
[1745601932863,6.10567602,1809.1,1809.0,5.52791597]
[1745601933851,6.10567602,1809.1,1808.8,7.29121329]
[1745601934062,6.10567602,1809.1,1808.9,5.52805]
[1745601934570,6.10567602,1809.1,1808.9,11.05606562]
[1745601934741,4.893,1809.2,1808.9,6.75214867]
[1745601935065,4.893,1809.2,1808.9,12.28019785]
[1745601935365,4.893,1809.2,1808.9,6.75214867]
[1745601935526,4.893,1809.2,1808.8,11.05674806]
[1745601935729,4.893,1809.2,1808.9,5.52820477]
[1745601936129,4.893,1809.2,1808.9,11.0562771]
[1745601936447,4.893,1809.2,1809.0,5.52787468]
[1745601937365,6.10567602,1809.3,1809.2,5.52730488]
[1745601938332,6.10567602,1809.4,1809.2,6.71486445]
[1745601938661,6.10567602,1809.4,1809.3,5.52699939]
[1745601939663,6.10567602,1809.4,1809.2,6.71486704]
[1745601939861,6.10567602,1809.4,1809.2,12.24201473]
[1745601940160,6.10567602,1809.4,1809.2,6.71486704]
[1745601940664,6.10567602,1809.4,1809.2,6.71483707]
[1745601941165,6.10567602,1809.4,1809.3,6.1984831]
[1745601942368,6.10567602,1809.4,1809.3,0.67148371]
[1745601942695,6.10567602,1809.4,1809.3,6.1984831]
[1745601943538,4.889,1809.5,1809.3,6.1984831]
[1745601944263,4.889,1809.5,1809.3,0.67148371]
[1745601944473,4.889,1809.5,1809.2,6.71483707]
[1745601945369,4.889,1809.5,1809.1,6.34999046]
[1745601945585,4.889,1809.5,1809.2,5.52712142]
[1745601945731,4.889,1809.5,1809.3,5.52685406]
[1745601947948,4.889,1809.5,1809.2,11.05423915]
[1745601948775,4.889,1809.5,1809.3,5.52699025]
[1745601950245,4.889,1809.5,1809.2,5.52711773]
[1745601950994,4.889,1809.5,1809.2,5.52710286]
[1745601951663,4.889,1809.5,1809.2,11.05421052]
[1745601951858,4.889,1809.5,1809.3,5.52694674]
[1745601952388,4.889,1809.5,1809.2,5.52710286]
[1745601952891,4.889,1809.5,1809.2,5.52708653]
[1745601953293,4.889,1809.5,1809.2,11.05423881]
[1745601953591,4.889,1809.5,1809.2,5.52708653]
[1745601954301,4.889,1809.5,1809.3,5.52697951]
[1745601954606,4.889,1809.5,1809.2,5.52708653]
[1745601955879,3.1243,1809.4,1808.8,6.34701974]
[1745601956092,6.10567602,1809.3,1808.8,11.87535606]
[1745601956310,6.10567602,1809.3,1808.8,6.34693632]
[1745601956512,0.1243,1809.1,1808.7,6.34721649]
[1745601956719,0.43673,1809.1,1808.6,6.3475347]